[Event "*** SCC Grand Prix: Titled Tuesday Blitz"]
[Site "Chess.com"]
[Date "2020.09.29"]
[Round "8"]
[White "ChelsieMonica"]
[Black "DarZay"]
[Result "1-0"]
[WhiteElo "2371"]
[BlackElo "2115"]
[TimeControl "180+1"]
[EndTime "11:33:50 PDT"]
[Termination "ChelsieMonica won on time"]

1. e4 {[%clk 0:03:00.9]} 1... c5 {[%clk 0:02:59.6]} 2. Nf3 {[%clk 0:03:00]} 2...
d6 {[%clk 0:02:58.6]} 3. d3 {[%clk 0:03:00]} 3... Nc6 {[%clk 0:02:55.2]} 4. c3
{[%clk 0:02:59.1]} 4... Nf6 {[%clk 0:02:49.2]} 5. Be2 {[%clk 0:02:57.9]} 5... e6
{[%clk 0:02:47.4]} 6. O-O {[%clk 0:02:56.8]} 6... d5 {[%clk 0:02:46.5]} 7. h3
{[%clk 0:02:57.7]} 7... dxe4 {[%clk 0:02:45.5]} 8. dxe4 {[%clk 0:02:56.6]} 8...
Qxd1 {[%clk 0:02:43.1]} 9. Rxd1 {[%clk 0:02:57.5]} 9... Nxe4 {[%clk 0:02:43.3]}
10. Bf4 {[%clk 0:02:57.8]} 10... Be7 {[%clk 0:02:39]} 11. Bb5 {[%clk 0:02:57.9]}
11... Bd7 {[%clk 0:02:38.3]} 12. Na3 {[%clk 0:02:51.5]} 12... f6 {[%clk
0:02:34.3]} 13. Nc4 {[%clk 0:02:36.4]} 13... O-O-O {[%clk 0:02:30.4]} 14. a4
{[%clk 0:02:22.3]} 14... e5 {[%clk 0:02:21.1]} 15. Be3 {[%clk 0:02:19.7]} 15...
Be6 {[%clk 0:02:14.5]} 16. Bxc6 {[%clk 0:02:12.8]} 16... bxc6 {[%clk 0:02:07.1]}
17. Nfd2 {[%clk 0:02:01.5]} 17... Nxd2 {[%clk 0:01:55.3]} 18. Nxd2 {[%clk
0:02:00.2]} 18... Kc7 {[%clk 0:01:49.2]} 19. Ne4 {[%clk 0:01:59.3]} 19... Rxd1+
{[%clk 0:01:41.8]} 20. Rxd1 {[%clk 0:01:58.7]} 20... Bb3 {[%clk 0:01:42]} 21.
Ra1 {[%clk 0:01:52.8]} 21... c4 {[%clk 0:01:41.4]} 22. a5 {[%clk 0:01:46.8]}
22... Bc2 {[%clk 0:01:33.2]} 23. Nd2 {[%clk 0:01:42.8]} 23... Bd3 {[%clk
0:01:22.8]} 24. Bxa7 {[%clk 0:01:40.5]} 24... c5 {[%clk 0:01:21]} 25. Bb6+
{[%clk 0:01:40.5]} 25... Kc6 {[%clk 0:01:13.8]} 26. f3 {[%clk 0:01:39.2]} 26...
f5 {[%clk 0:01:09.9]} 27. Nf1 {[%clk 0:00:56.1]} 27... g5 {[%clk 0:00:55.7]} 28.
g4 {[%clk 0:00:40.4]} 28... h5 {[%clk 0:00:48.4]} 29. gxf5 {[%clk 0:00:40]}
29... Bxf5 {[%clk 0:00:48.2]} 30. Kg2 {[%clk 0:00:40.4]} 30... g4 {[%clk
0:00:39.8]} 31. hxg4 {[%clk 0:00:40]} 31... hxg4 {[%clk 0:00:40]} 32. fxg4
{[%clk 0:00:37.6]} 32... Bxg4 {[%clk 0:00:40]} 33. Ne3 {[%clk 0:00:37.7]} 33...
Bh3+ {[%clk 0:00:36.4]} 34. Kf3 {[%clk 0:00:37.8]} 34... Rf8+ {[%clk 0:00:26.5]}
35. Ke2 {[%clk 0:00:37.7]} 35... Be6 {[%clk 0:00:25.6]} 36. Rh1 {[%clk
0:00:35.1]} 36... Rf7 {[%clk 0:00:17.8]} 37. Rh6 {[%clk 0:00:35.1]} 37... Rf6
{[%clk 0:00:17]} 38. Rxf6 {[%clk 0:00:34.5]} 38... Bxf6 {[%clk 0:00:17.2]} 39.
Kf3 {[%clk 0:00:34.1]} 39... Bh4 {[%clk 0:00:14.8]} 40. Ke4 {[%clk 0:00:34.1]}
40... Bf6 {[%clk 0:00:15]} 41. Nf5 {[%clk 0:00:32.3]} 41... Bd5+ {[%clk
0:00:14.2]} 42. Ke3 {[%clk 0:00:32.1]} 42... Bg5+ {[%clk 0:00:14.5]} 43. Ke2
{[%clk 0:00:31.8]} 43... e4 {[%clk 0:00:13.3]} 44. Ne3 {[%clk 0:00:29.5]} 44...
Bf7 {[%clk 0:00:11.9]} 45. Ng4 {[%clk 0:00:28.6]} 45... Bh5 {[%clk 0:00:11.6]}
46. Kf2 {[%clk 0:00:25.1]} 46... Bxg4 {[%clk 0:00:11.7]} 47. Bd8 {[%clk
0:00:24.9]} 47... e3+ {[%clk 0:00:11.6]} 48. Kg3 {[%clk 0:00:24.5]} 48... e2
{[%clk 0:00:10.6]} 49. Kf2 {[%clk 0:00:24]} 49... Bh4+ {[%clk 0:00:10.4]} 50.
Bxh4 {[%clk 0:00:22.8]} 50... Kb5 {[%clk 0:00:09.8]} 51. Bd8 {[%clk 0:00:22.8]}
51... Ka6 {[%clk 0:00:09.2]} 52. Ke1 {[%clk 0:00:22.8]} 52... Bh5 {[%clk
0:00:08.5]} 53. Kd2 {[%clk 0:00:22.6]} 53... Kb5 {[%clk 0:00:08.3]} 54. Bb6
{[%clk 0:00:22.7]} 54... Bf3 {[%clk 0:00:07.2]} 55. Ke1 {[%clk 0:00:23]} 55...
Ka6 {[%clk 0:00:04.9]} 56. Kf2 {[%clk 0:00:23.9]} 56... Kb5 {[%clk 0:00:04]} 57.
Bd8 {[%clk 0:00:24.1]} 57... Ka4 {[%clk 0:00:03.3]} 58. Bh4 {[%clk 0:00:24.2]}
1-0

[Event "*** SCC Grand Prix: Titled Tuesday Blitz"]
[Site "Chess.com"]
[Date "2020.09.29"]
[Round "8"]
[White "dosto07"]
[Black "parnali1611"]
[Result "1-0"]
[WhiteElo "2298"]
[BlackElo "2106"]
[TimeControl "180+1"]
[EndTime "11:33:51 PDT"]
[Termination "dosto07 won on time"]

1. e4 {[%clk 0:03:00.9]} 1... e5 {[%clk 0:03:00.1]} 2. Nf3 {[%clk 0:03:00.1]}
2... Nc6 {[%clk 0:03:00.5]} 3. Bb5 {[%clk 0:02:59.7]} 3... a6 {[%clk 0:02:59.5]}
4. Bxc6 {[%clk 0:03:00.3]} 4... dxc6 {[%clk 0:02:58.9]} 5. O-O {[%clk
0:03:01.2]} 5... Bg4 {[%clk 0:02:53.5]} 6. h3 {[%clk 0:03:00]} 6... h5 {[%clk
0:02:51.6]} 7. d3 {[%clk 0:02:59.3]} 7... Qf6 {[%clk 0:02:50]} 8. Be3 {[%clk
0:02:59]} 8... Bd6 {[%clk 0:02:45.1]} 9. Nbd2 {[%clk 0:02:58]} 9... Ne7 {[%clk
0:02:30.6]} 10. Re1 {[%clk 0:02:57]} 10... Be6 {[%clk 0:02:21.4]} 11. d4 {[%clk
0:02:51.6]} 11... O-O-O {[%clk 0:02:16.7]} 12. dxe5 {[%clk 0:02:40.6]} 12...
Bxe5 {[%clk 0:02:11]} 13. Bg5 {[%clk 0:02:39.9]} 13... Qg6 {[%clk 0:02:02.8]}
14. Bxe7 {[%clk 0:02:29.3]} 14... Bxh3 {[%clk 0:02:00.9]} 15. Nh4 {[%clk
0:02:27.7]} 15... Qh6 {[%clk 0:01:42.6]} 16. Bxd8 {[%clk 0:02:22.7]} 16... Rxd8
{[%clk 0:01:36.3]} 17. Qf3 {[%clk 0:02:21.4]} 17... Bg4 {[%clk 0:01:31]} 18. Nf5
{[%clk 0:02:05.4]} 18... Qxd2 {[%clk 0:01:19.6]} 19. Qe3 {[%clk 0:01:57.2]}
19... Qxc2 {[%clk 0:01:16.9]} 20. Rac1 {[%clk 0:01:20.7]} 20... Qxb2 {[%clk
0:01:14.3]} 21. Qa7 {[%clk 0:01:13.5]} 21... Bxf5 {[%clk 0:01:08.9]} 22. Qa8+
{[%clk 0:01:05.7]} 22... Kd7 {[%clk 0:01:07.7]} 23. Red1+ {[%clk 0:01:04.5]}
23... Bd4 {[%clk 0:01:06.3]} 24. Rxd4+ {[%clk 0:00:53.8]} 24... Qxd4 {[%clk
0:01:05.7]} 25. Qxb7 {[%clk 0:00:53]} 25... Bxe4 {[%clk 0:01:04.9]} 26. Qxa6
{[%clk 0:00:48.7]} 26... Bd5 {[%clk 0:01:04.1]} 27. Qe2 {[%clk 0:00:47.2]} 27...
g6 {[%clk 0:00:59.8]} 28. Rd1 {[%clk 0:00:46]} 28... Qf6 {[%clk 0:00:56.8]} 29.
a4 {[%clk 0:00:44.9]} 29... Re8 {[%clk 0:00:56.5]} 30. Qd2 {[%clk 0:00:41.9]}
30... Qd6 {[%clk 0:00:43.5]} 31. a5 {[%clk 0:00:40.2]} 31... Ra8 {[%clk
0:00:41]} 32. Ra1 {[%clk 0:00:38.1]} 32... Qe5 {[%clk 0:00:38.5]} 33. Ra3 {[%clk
0:00:29.6]} 33... Qe4 {[%clk 0:00:35.9]} 34. f3 {[%clk 0:00:27.6]} 34... Qe7
{[%clk 0:00:32.6]} 35. Qc3 {[%clk 0:00:22.6]} 35... Rb8 {[%clk 0:00:27.3]} 36.
Ra1 {[%clk 0:00:21]} 36... Qe2 {[%clk 0:00:21.5]} 37. Re1 {[%clk 0:00:15.5]}
37... Qb2 {[%clk 0:00:17.7]} 38. Qc5 {[%clk 0:00:12.3]} 38... Re8 {[%clk
0:00:12.8]} 39. Rxe8 {[%clk 0:00:09.8]} 39... Kxe8 {[%clk 0:00:11.8]} 40. Qa7
{[%clk 0:00:10.5]} 40... Qa1+ {[%clk 0:00:11.1]} 41. Kh2 {[%clk 0:00:09.5]}
41... Kd7 {[%clk 0:00:10.2]} 42. Qa8 {[%clk 0:00:07.6]} 42... Qe5+ {[%clk
0:00:09.3]} 43. Kg1 {[%clk 0:00:06.7]} 43... Qg3 {[%clk 0:00:08.5]} 44. Kf1
{[%clk 0:00:05.5]} 44... Bc4+ {[%clk 0:00:07.6]} 45. Kg1 {[%clk 0:00:04.9]}
45... Be2 {[%clk 0:00:07.4]} 46. Qf8 {[%clk 0:00:03.4]} 46... Qe1+ {[%clk
0:00:05.7]} 47. Kh2 {[%clk 0:00:02.6]} 47... Qh4+ {[%clk 0:00:04.7]} 48. Kg1
{[%clk 0:00:02.9]} 48... Qe7 {[%clk 0:00:04.5]} 49. Qh8 {[%clk 0:00:02.2]} 49...
Qc5+ {[%clk 0:00:03.6]} 50. Kh2 {[%clk 0:00:01.1]} 50... Qxa5 {[%clk 0:00:03.4]}
51. Kh1 {[%clk 0:00:01.2]} 51... Qe1+ {[%clk 0:00:02.5]} 52. Kh2 {[%clk
0:00:01.2]} 52... Qh4+ {[%clk 0:00:02.2]} 53. Kg1 {[%clk 0:00:01.6]} 53... Qg3
{[%clk 0:00:01.8]} 54. Qd4+ {[%clk 0:00:02.5]} 1-0

[Event "*** SCC Grand Prix: Titled Tuesday Blitz"]
[Site "Chess.com"]
[Date "2020.09.29"]
[Round "8"]
[White "QuintilianoR"]
[Black "venus02"]
[Result "0-1"]
[WhiteElo "2598"]
[BlackElo "2479"]
[TimeControl "180+1"]
[EndTime "11:33:54 PDT"]
[Termination "venus02 won on time"]

1. Nf3 {[%clk 0:03:00.9]} 1... Nf6 {[%clk 0:02:58.5]} 2. c4 {[%clk 0:03:00.5]}
2... c6 {[%clk 0:02:57.9]} 3. Nc3 {[%clk 0:02:59.7]} 3... d5 {[%clk 0:02:57.5]}
4. e3 {[%clk 0:02:58.8]} 4... e6 {[%clk 0:02:56.8]} 5. d4 {[%clk 0:02:58.2]}
5... Be7 {[%clk 0:02:54.9]} 6. Qc2 {[%clk 0:02:54.8]} 6... O-O {[%clk
0:02:54.8]} 7. b3 {[%clk 0:02:54.8]} 7... b6 {[%clk 0:02:54.4]} 8. Bd3 {[%clk
0:02:54.2]} 8... Bb7 {[%clk 0:02:54.4]} 9. O-O {[%clk 0:02:54.1]} 9... Nbd7
{[%clk 0:02:54.5]} 10. Rd1 {[%clk 0:02:52]} 10... Rc8 {[%clk 0:02:53.6]} 11. e4
{[%clk 0:02:50.9]} 11... dxe4 {[%clk 0:02:52]} 12. Nxe4 {[%clk 0:02:49.8]} 12...
Nxe4 {[%clk 0:02:52.3]} 13. Bxe4 {[%clk 0:02:50.7]} 13... Nf6 {[%clk 0:02:52.7]}
14. c5 {[%clk 0:02:46.8]} 14... Nxe4 {[%clk 0:02:50.5]} 15. Qxe4 {[%clk
0:02:47.7]} 15... bxc5 {[%clk 0:02:45.3]} 16. Ba3 {[%clk 0:02:25.5]} 16... cxd4
{[%clk 0:02:43.3]} 17. Rxd4 {[%clk 0:02:24.5]} 17... Qe8 {[%clk 0:02:43.2]} 18.
Ra4 {[%clk 0:02:18.8]} 18... Bxa3 {[%clk 0:02:37.5]} 19. Rxa3 {[%clk 0:02:19.7]}
19... a6 {[%clk 0:02:19.8]} 20. Qb4 {[%clk 0:02:03.6]} 20... Qd7 {[%clk
0:02:11.3]} 21. Qc5 {[%clk 0:01:34.6]} 21... Rfd8 {[%clk 0:02:05.8]} 22. h3
{[%clk 0:01:28]} 22... Qd5 {[%clk 0:02:03.7]} 23. b4 {[%clk 0:01:23.8]} 23... h6
{[%clk 0:01:50.1]} 24. Rc3 {[%clk 0:01:17.8]} 24... Ba8 {[%clk 0:01:38.9]} 25.
Ne5 {[%clk 0:01:11.4]} 25... Qxc5 {[%clk 0:01:36.7]} 26. Rxc5 {[%clk 0:01:09.8]}
26... Rd5 {[%clk 0:01:11.8]} 27. Nc4 {[%clk 0:01:04.3]} 27... Rb8 {[%clk
0:01:08.1]} 28. a3 {[%clk 0:01:01]} 28... Kf8 {[%clk 0:01:07.4]} 29. Rc1 {[%clk
0:00:58.9]} 29... Ke7 {[%clk 0:01:06.6]} 30. Na5 {[%clk 0:00:48.6]} 30... Rxc5
{[%clk 0:01:03.4]} 31. Rxc5 {[%clk 0:00:49.5]} 31... Kd6 {[%clk 0:01:01.7]} 32.
Nc4+ {[%clk 0:00:44]} 32... Kc7 {[%clk 0:01:01.5]} 33. Ne5 {[%clk 0:00:39.3]}
33... f6 {[%clk 0:00:59.1]} 34. Nf3 {[%clk 0:00:39.1]} 34... Rd8 {[%clk
0:00:51.4]} 35. Rc3 {[%clk 0:00:28]} 35... Rd5 {[%clk 0:00:44.9]} 36. Kf1 {[%clk
0:00:26.9]} 36... Kb6 {[%clk 0:00:42.6]} 37. Ke2 {[%clk 0:00:26.2]} 37... c5
{[%clk 0:00:40.9]} 38. Ke3 {[%clk 0:00:16.2]} 38... cxb4 {[%clk 0:00:40.3]} 39.
axb4 {[%clk 0:00:16.5]} 39... Bc6 {[%clk 0:00:30.1]} 40. Nd4 {[%clk 0:00:14.8]}
40... Bd7 {[%clk 0:00:30.1]} 41. Nb3 {[%clk 0:00:13.5]} 41... e5 {[%clk
0:00:22.3]} 42. Nc5 {[%clk 0:00:13.1]} 42... Bb5 {[%clk 0:00:19.3]} 43. f3
{[%clk 0:00:12]} 43... Rd4 {[%clk 0:00:16.7]} 44. Ne4 {[%clk 0:00:09.4]} 44...
Rxb4 {[%clk 0:00:15.8]} 45. Nd6 {[%clk 0:00:09.5]} 45... a5 {[%clk 0:00:14.3]}
46. Nf5 {[%clk 0:00:07.9]} 46... a4 {[%clk 0:00:13.4]} 47. Ne7 {[%clk
0:00:07.6]} 47... Rb3 {[%clk 0:00:12]} 48. Nd5+ {[%clk 0:00:07]} 48... Ka5
{[%clk 0:00:11.4]} 49. Kd2 {[%clk 0:00:07.9]} 49... Rb2+ {[%clk 0:00:08.2]} 50.
Kc1 {[%clk 0:00:06.1]} 50... Rxg2 {[%clk 0:00:07.9]} 51. Rc7 {[%clk 0:00:06.3]}
51... Ka6 {[%clk 0:00:04.8]} 52. Rc5 {[%clk 0:00:02.6]} 52... a3 {[%clk
0:00:04.8]} 53. Nc7+ {[%clk 0:00:02.4]} 53... Kb6 {[%clk 0:00:05.1]} 0-1

[Event "*** SCC Grand Prix: Titled Tuesday Blitz"]
[Site "Chess.com"]
[Date "2020.09.29"]
[Round "8"]
[White "Fh2411"]
[Black "ChrisTool2"]
[Result "1-0"]
[WhiteElo "2531"]
[BlackElo "2347"]
[TimeControl "180+1"]
[EndTime "11:34:03 PDT"]
[Termination "Fh2411 won by resignation"]

1. d4 {[%clk 0:03:00.9]} 1... Nf6 {[%clk 0:02:59.7]} 2. Nf3 {[%clk 0:03:01.3]}
2... e6 {[%clk 0:02:54.8]} 3. Bg5 {[%clk 0:03:00.7]} 3... c5 {[%clk 0:02:53.9]}
4. e3 {[%clk 0:02:58.7]} 4... cxd4 {[%clk 0:02:49.1]} 5. exd4 {[%clk 0:02:58.2]}
5... d5 {[%clk 0:02:49]} 6. c3 {[%clk 0:02:57.7]} 6... Be7 {[%clk 0:02:49.5]} 7.
Bd3 {[%clk 0:02:57]} 7... O-O {[%clk 0:02:49]} 8. Nbd2 {[%clk 0:02:57.5]} 8...
Nbd7 {[%clk 0:02:42.3]} 9. O-O {[%clk 0:02:56.4]} 9... Nh5 {[%clk 0:02:36.6]}
10. Be3 {[%clk 0:02:47.6]} 10... f5 {[%clk 0:02:29.9]} 11. Nb3 {[%clk
0:02:40.1]} 11... Nhf6 {[%clk 0:02:22.3]} 12. Bg5 {[%clk 0:02:35.2]} 12... Ne4
{[%clk 0:02:21.4]} 13. Bxe7 {[%clk 0:02:36.1]} 13... Qxe7 {[%clk 0:02:21.8]} 14.
Qe2 {[%clk 0:02:33.4]} 14... Ndf6 {[%clk 0:02:15.6]} 15. Ne5 {[%clk 0:02:32.4]}
15... Bd7 {[%clk 0:02:14.1]} 16. f3 {[%clk 0:02:30.2]} 16... Nd6 {[%clk
0:02:11.2]} 17. Nc5 {[%clk 0:02:24.2]} 17... Be8 {[%clk 0:02:02.3]} 18. Rae1
{[%clk 0:02:09.4]} 18... b6 {[%clk 0:02:01.8]} 19. Nb3 {[%clk 0:02:09]} 19...
Bh5 {[%clk 0:01:59.7]} 20. Qd2 {[%clk 0:02:04.6]} 20... Rae8 {[%clk 0:01:53.2]}
21. Nc1 {[%clk 0:01:55.3]} 21... Nd7 {[%clk 0:01:37.8]} 22. Nxd7 {[%clk
0:01:34.5]} 22... Qxd7 {[%clk 0:01:38.7]} 23. Qf4 {[%clk 0:01:28.2]} 23... Bg6
{[%clk 0:01:22.2]} 24. Bc2 {[%clk 0:01:21.6]} 24... Nc4 {[%clk 0:01:18.7]} 25.
Nd3 {[%clk 0:01:21.6]} 25... Qd6 {[%clk 0:01:09.1]} 26. Qxd6 {[%clk 0:01:16.9]}
26... Nxd6 {[%clk 0:01:10]} 27. Nf4 {[%clk 0:01:05.7]} 27... Bf7 {[%clk
0:01:06]} 28. h4 {[%clk 0:01:05.9]} 28... g6 {[%clk 0:01:04.1]} 29. Bb3 {[%clk
0:00:57.3]} 29... b5 {[%clk 0:01:04.3]} 30. Re2 {[%clk 0:00:56.5]} 30... Re7
{[%clk 0:00:57.1]} 31. Nxd5 {[%clk 0:00:53.4]} 31... Rb7 {[%clk 0:00:39.4]} 32.
Nf4 {[%clk 0:00:51.5]} 32... Nc4 {[%clk 0:00:38.7]} 33. Nd3 {[%clk 0:00:36.6]}
33... Re8 {[%clk 0:00:30.1]} 34. Ne5 {[%clk 0:00:34.9]} 34... Rc7 {[%clk
0:00:26.3]} 35. Rfe1 {[%clk 0:00:34]} 35... Kg7 {[%clk 0:00:25]} 36. Kf2 {[%clk
0:00:33.3]} 36... Bg8 {[%clk 0:00:24.9]} 37. Bxc4 {[%clk 0:00:29]} 37... bxc4
{[%clk 0:00:24.9]} 38. f4 {[%clk 0:00:26.5]} 38... Rb8 {[%clk 0:00:24.1]} 39.
Rd1 {[%clk 0:00:24.9]} 39... Rcb7 {[%clk 0:00:23.8]} 40. Rdd2 {[%clk 0:00:25.5]}
40... Kf6 {[%clk 0:00:23.1]} 41. Nxc4 {[%clk 0:00:25.3]} 41... h6 {[%clk
0:00:22.1]} 42. Ne5 {[%clk 0:00:25]} 42... g5 {[%clk 0:00:22.1]} 43. hxg5+
{[%clk 0:00:25.9]} 43... hxg5 {[%clk 0:00:23]} 44. g3 {[%clk 0:00:26.6]} 44...
gxf4 {[%clk 0:00:20.5]} 45. gxf4 {[%clk 0:00:27.5]} 45... Rh7 {[%clk 0:00:20.6]}
46. Nf3 {[%clk 0:00:21.2]} 46... Bf7 {[%clk 0:00:19.6]} 47. Ng5 {[%clk
0:00:20.8]} 47... Rh4 {[%clk 0:00:18.9]} 48. Ke3 {[%clk 0:00:19.1]} 48... Bh5
{[%clk 0:00:18.1]} 49. Rh2 {[%clk 0:00:19.6]} 49... Rxh2 {[%clk 0:00:13.5]} 50.
Rxh2 {[%clk 0:00:20.5]} 50... Bg6 {[%clk 0:00:14]} 51. b3 {[%clk 0:00:20.7]}
51... Rc8 {[%clk 0:00:13.4]} 52. c4 {[%clk 0:00:21.1]} 52... Rd8 {[%clk
0:00:12.5]} 53. Kd3 {[%clk 0:00:18.7]} 53... e5 {[%clk 0:00:12.1]} 54. d5 {[%clk
0:00:17]} 54... exf4 {[%clk 0:00:11.9]} 55. Nf3 {[%clk 0:00:17.6]} 55... Re8
{[%clk 0:00:10.7]} 56. Re2 {[%clk 0:00:16]} 56... Rh8 {[%clk 0:00:10.7]} 57. Kd4
{[%clk 0:00:11.9]} 57... Rh3 {[%clk 0:00:10.2]} 58. Re6+ {[%clk 0:00:12.1]}
58... Kg7 {[%clk 0:00:09.7]} 59. Ne5 {[%clk 0:00:12]} 59... Bh5 {[%clk
0:00:07.5]} 60. Re7+ {[%clk 0:00:11.4]} 60... Kf6 {[%clk 0:00:06.3]} 61. Re6+
{[%clk 0:00:10.9]} 61... Kg7 {[%clk 0:00:06.6]} 62. d6 {[%clk 0:00:11.5]} 62...
Be2 {[%clk 0:00:04.4]} 63. d7 {[%clk 0:00:11]} 63... Rd3+ {[%clk 0:00:04.6]} 64.
Nxd3 {[%clk 0:00:11]} 64... f3 {[%clk 0:00:03.8]} 65. d8=Q {[%clk 0:00:09.1]}
1-0

[Event "*** SCC Grand Prix: Titled Tuesday Blitz"]
[Site "Chess.com"]
[Date "2020.09.29"]
[Round "8"]
[White "IANOV0007"]
[Black "TC2304"]
[Result "1-0"]
[WhiteElo "2492"]
[BlackElo "2317"]
[TimeControl "180+1"]
[EndTime "11:34:04 PDT"]
[Termination "IANOV0007 won by resignation"]

1. Nf3 {[%clk 0:03:00.9]} 1... Nf6 {[%clk 0:02:59.6]} 2. g3 {[%clk 0:03:00.9]}
2... c5 {[%clk 0:02:59]} 3. c4 {[%clk 0:03:00.2]} 3... g6 {[%clk 0:02:57.8]} 4.
Bg2 {[%clk 0:03:00.2]} 4... Bg7 {[%clk 0:02:58.4]} 5. Nc3 {[%clk 0:02:59.8]}
5... O-O {[%clk 0:02:58.8]} 6. O-O {[%clk 0:02:59.7]} 6... Nc6 {[%clk
0:02:59.4]} 7. d4 {[%clk 0:02:59.7]} 7... cxd4 {[%clk 0:03:00.3]} 8. Nxd4 {[%clk
0:02:59.7]} 8... Qa5 {[%clk 0:03:00.9]} 9. Nb3 {[%clk 0:02:55.2]} 9... Qh5
{[%clk 0:03:00.7]} 10. e4 {[%clk 0:02:54]} 10... d6 {[%clk 0:03:01.1]} 11. Qxh5
{[%clk 0:02:52.3]} 11... Nxh5 {[%clk 0:03:02]} 12. Bd2 {[%clk 0:02:51]} 12...
Bd7 {[%clk 0:02:55.6]} 13. Rac1 {[%clk 0:02:48.5]} 13... Nd4 {[%clk 0:02:50.9]}
14. Nxd4 {[%clk 0:02:46.1]} 14... Bxd4 {[%clk 0:02:50.6]} 15. b3 {[%clk
0:02:44.1]} 15... Bc6 {[%clk 0:02:39.2]} 16. Nd5 {[%clk 0:02:42.7]} 16... Rae8
{[%clk 0:02:29.7]} 17. Bg5 {[%clk 0:02:40.1]} 17... f6 {[%clk 0:02:24.7]} 18.
Bh6 {[%clk 0:02:33.5]} 18... Rf7 {[%clk 0:02:19.4]} 19. Rfd1 {[%clk 0:02:30.6]}
19... Bb2 {[%clk 0:02:04]} 20. Rc2 {[%clk 0:02:29.2]} 20... Ba3 {[%clk
0:02:04.2]} 21. Be3 {[%clk 0:02:24.2]} 21... b6 {[%clk 0:01:59]} 22. Bh3 {[%clk
0:02:08.4]} 22... e6 {[%clk 0:01:55.8]} 23. Nc3 {[%clk 0:02:04.7]} 23... f5
{[%clk 0:01:51.1]} 24. Bg2 {[%clk 0:01:59.9]} 24... f4 {[%clk 0:01:44.8]} 25.
Bd4 {[%clk 0:01:59.4]} 25... e5 {[%clk 0:01:39.6]} 26. Nb1 {[%clk 0:01:57]}
26... exd4 {[%clk 0:01:32.7]} 27. Nxa3 {[%clk 0:01:56]} 27... Bxe4 {[%clk
0:01:31]} 28. Re1 {[%clk 0:01:42.5]} 28... f3 {[%clk 0:01:24.3]} 29. Bf1 {[%clk
0:01:39.7]} 29... Rfe7 {[%clk 0:01:08.3]} 30. Rd2 {[%clk 0:01:39]} 30... d3
{[%clk 0:01:06.4]} 31. Nb5 {[%clk 0:01:36.9]} 31... d5 {[%clk 0:00:57.1]} 32.
cxd5 {[%clk 0:01:31.4]} 32... Bxd5 {[%clk 0:00:57.2]} 33. Rxe7 {[%clk
0:01:28.2]} 33... Rxe7 {[%clk 0:00:58.1]} 34. Rxd3 {[%clk 0:01:28]} 34... Bb7
{[%clk 0:00:47.1]} 35. Rd1 {[%clk 0:01:24.3]} 35... Nf6 {[%clk 0:00:39.3]} 36.
Bc4+ {[%clk 0:01:21.8]} 36... Kg7 {[%clk 0:00:38.1]} 37. Nd6 {[%clk 0:01:20.4]}
37... Bc6 {[%clk 0:00:30.7]} 38. a4 {[%clk 0:01:18]} 38... a5 {[%clk 0:00:27.1]}
39. h4 {[%clk 0:01:17.4]} 39... Ng4 {[%clk 0:00:23.8]} 40. Nc8 {[%clk
0:01:11.2]} 40... Rc7 {[%clk 0:00:16.2]} 41. Nxb6 {[%clk 0:01:10]} 41... Be4
{[%clk 0:00:15.7]} 42. Nd5 {[%clk 0:01:09.5]} 42... Rb7 {[%clk 0:00:13.7]} 43.
Nc3 {[%clk 0:01:09.1]} 43... Bf5 {[%clk 0:00:12.9]} 44. Nb5 {[%clk 0:01:07.6]}
44... Re7 {[%clk 0:00:12.1]} 45. Nd6 {[%clk 0:01:07.4]} 45... Bc2 {[%clk
0:00:11.7]} 46. Rc1 {[%clk 0:01:06.3]} 46... Bf5 {[%clk 0:00:07.5]} 47. Nxf5+
{[%clk 0:01:05.8]} 47... gxf5 {[%clk 0:00:08.4]} 48. Bd5 {[%clk 0:01:05.9]}
48... Ne5 {[%clk 0:00:07.8]} 49. Re1 {[%clk 0:01:04.5]} 49... Kf6 {[%clk
0:00:07.5]} 50. Re3 {[%clk 0:01:04.1]} 50... Rd7 {[%clk 0:00:07.8]} 51. Bxf3
{[%clk 0:01:03.8]} 51... Rd1+ {[%clk 0:00:08.3]} 52. Kg2 {[%clk 0:01:03.8]}
52... Rd2 {[%clk 0:00:08.3]} 53. Be2 {[%clk 0:01:03.3]} 53... Rb2 {[%clk
0:00:07.1]} 54. Bc4 {[%clk 0:01:01.6]} 54... h6 {[%clk 0:00:07.4]} 55. Kf1
{[%clk 0:01:00.2]} 55... Nxc4 {[%clk 0:00:07]} 56. bxc4 {[%clk 0:00:59.6]} 56...
Rc2 {[%clk 0:00:07.7]} 57. Rd3 {[%clk 0:00:59.2]} 57... Rxc4 {[%clk 0:00:07.4]}
58. Rd6+ {[%clk 0:00:59.2]} 58... Kg7 {[%clk 0:00:07.7]} 59. Rd5 {[%clk
0:00:58.1]} 59... Rxa4 {[%clk 0:00:07.4]} 60. Rxf5 {[%clk 0:00:58.2]} 60... Kg6
{[%clk 0:00:07.8]} 61. Rb5 {[%clk 0:00:57.7]} 61... h5 {[%clk 0:00:07.8]} 62.
Rg5+ {[%clk 0:00:56.3]} 62... Kh6 {[%clk 0:00:08.2]} 63. Kg2 {[%clk 0:00:56.6]}
63... Ra2 {[%clk 0:00:08.3]} 64. Rf5 {[%clk 0:00:56.1]} 64... a4 {[%clk
0:00:08.7]} 65. Ra5 {[%clk 0:00:55.5]} 65... a3 {[%clk 0:00:09]} 66. Kf3 {[%clk
0:00:55.6]} 66... Kg6 {[%clk 0:00:08.2]} 67. Ke3 {[%clk 0:00:54.7]} 67... Kh6
{[%clk 0:00:08.4]} 68. Ra6+ {[%clk 0:00:53.7]} 68... Kg7 {[%clk 0:00:08.1]} 69.
f3 {[%clk 0:00:53.7]} 69... Rg2 {[%clk 0:00:05.2]} 70. Kf4 {[%clk 0:00:53.1]}
70... a2 {[%clk 0:00:05.2]} 71. g4 {[%clk 0:00:53.2]} 71... hxg4 {[%clk
0:00:05]} 72. fxg4 {[%clk 0:00:53.3]} 72... Rf2+ {[%clk 0:00:05.5]} 73. Kg5
{[%clk 0:00:53.4]} 73... Rb2 {[%clk 0:00:05.6]} 74. Ra7+ {[%clk 0:00:53.1]}
74... Kg8 {[%clk 0:00:06.1]} 75. h5 {[%clk 0:00:53.2]} 75... Kh8 {[%clk
0:00:05.8]} 76. h6 {[%clk 0:00:52.6]} 76... Kg8 {[%clk 0:00:06.2]} 77. Kh5
{[%clk 0:00:52.5]} 77... Rh2+ {[%clk 0:00:04.6]} 78. Kg6 {[%clk 0:00:52.3]}
78... Kf8 {[%clk 0:00:05.2]} 79. h7 {[%clk 0:00:51.4]} 79... Rh1 {[%clk
0:00:03]} 80. Rxa2 {[%clk 0:00:50.2]} 1-0